bitfinex/quotes_ETHUSD_20250404
["timestamp","ask_amount","ask_price","bid_price","bid_amount"]
[1743769912028,0.05606012,1784.4,1783.5,5.60682]
[1743769912326,0.60606012,1784.7,1783.5,0.560682]
[1743769912512,5.60381,1784.5,1783.7,3.0]
[1743769912716,0.05606012,1784.4,1783.8,0.55]
[1743769912917,0.05606012,1784.4,1783.1,3.0]
[1743769913250,0.05606012,1784.5,1783.7,5.60629]
[1743769913550,0.55,1784.7,1784.2,5.60475]
[1743769913716,0.55,1784.7,1784.5,0.55]
[1743769913919,0.55,1784.7,1784.6,6.20951653]
[1743769914117,0.55,1784.7,1784.6,0.55]
[1743769915351,5.64962,1785.9,1784.7,3.55]
[1743769915648,5.64962,1785.9,1784.3,10.96670035]
[1743769915649,5.60087,1785.5,1785.0,0.55]
[1743769915849,0.05606012,1785.4,1784.5,3.0]
[1743769916053,5.60012,1785.7,1784.9,3.55]
[1743769916221,0.05606012,1785.6,1784.9,0.55]
[1743769916424,0.05606012,1785.6,1784.3,3.0]
[1743769916425,5.60151,1785.3,1784.8,0.55]
[1743769916750,0.05606012,1785.6,1784.7,5.60298]
[1743769916917,0.05606012,1785.7,1784.7,0.560298]
[1743769917117,0.10606012,1785.9,1785.0,0.55]
[1743769917317,0.10606012,1785.9,1784.6,0.55]
[1743769917318,0.05,1785.9,1784.6,0.55]
[1743769917544,0.05606012,1785.8,1784.8,6.15284]
[1743769917742,0.05,1785.9,1785.3,0.55]
[1743769917943,5.59987,1785.8,1785.3,0.55]
[1743769918274,0.10606012,1785.9,1785.1,3.0]
[1743769918577,0.10606012,1785.9,1784.6,3.0]
[1743769918871,3.0,1785.7,1784.3,5.60443]
[1743769919018,3.0,1785.3,1784.0,5.60518]
[1743769919218,0.05606012,1785.2,1783.7,6.58117598]
[1743769919465,0.05606012,1785.2,1783.9,5.60543]
[1743769919656,0.05606012,1785.3,1784.0,0.05602948]
[1743769919950,5.60121,1785.4,1784.4,3.0]
[1743769920151,0.05606012,1785.4,1784.6,0.55]
[1743769920348,0.05606012,1785.4,1784.5,0.60601901]
[1743769920349,5.60229,1785.0,1784.0,5.60515]
[1743769920574,0.05606012,1785.1,1783.7,0.560629]
[1743769920792,3.0,1785.0,1783.7,5.60608]
[1743769920999,3.05606012,1785.1,1783.8,0.05603515]
[1743769921147,5.60367,1784.6,1783.6,5.60663]
[1743769921347,5.60406,1784.5,1783.5,30.8248]
[1743769921564,0.05606012,1784.4,1783.0,10.97090035]
[1743769921774,5.60443,1784.3,1783.1,6.70503004]
[1743769921978,3.05606012,1784.2,1782.8,6.12467116]
[1743769922178,5.60664,1783.6,1782.7,5.60934]
[1743769922380,0.05606012,1783.8,1782.8,0.05607004]
[1743769922568,5.60526,1784.1,1783.1,5.608]
[1743769922775,5.6054,1784.0,1783.2,0.60606093]
[1743769922968,0.42844302,1784.5,1783.1,5.60795]
[1743769923282,5.60618,1783.8,1782.8,5.60889]
[1743769923445,5.66255012,1783.7,1782.7,11.21876]
[1743769923643,5.66255012,1783.7,1782.8,5.60911]
[1743769923850,0.05606012,1783.7,1782.5,0.53625804]
[1743769924152,5.6076,1783.3,1782.4,5.61012]
[1743769924355,5.6076,1783.3,1781.3,6.12941116]
[1743769924356,5.60844,1783.1,1782.1,5.61118]
[1743769924677,5.60905,1782.9,1781.9,5.61178]
[1743769924858,0.05606012,1782.8,1781.9,5.61175]
[1743769925060,0.05606012,1782.8,1781.9,0.55]
[1743769925061,5.60938,1782.8,1781.9,0.55]
[1743769925269,0.05606012,1782.7,1781.4,11.39119933]
[1743769925604,3.0,1783.1,1781.4,11.39119933]
[1743769925605,8.66464012,1783.0,1782.1,5.61135]
[1743769925801,5.6079,1783.2,1782.4,3.0]
[1743769926126,5.66349012,1783.4,1782.6,0.55]
[1743769926408,0.05606012,1783.3,1782.5,3.0]
[1743769926549,5.66297012,1783.6,1782.7,3.0]
[1743769926749,5.60744,1783.4,1782.8,0.55]
[1743769926980,30.81902,1783.8,1782.9,3.0]
[1743769926981,25.213,1783.8,1782.9,3.0]
[1743769927179,25.213,1783.8,1782.6,3.0]
[1743769927180,5.60656,1783.7,1782.8,0.355]
[1743769927395,5.66258012,1783.7,1782.9,0.55]
[1743769927617,25.213,1783.8,1783.1,0.55]
[1743769927882,5.60441,1784.4,1783.3,3.0]
[1743769928183,5.60279,1784.9,1784.0,5.60521]
[1743769928378,25.219,1785.2,1784.5,0.55]
[1743769928379,0.05606012,1785.1,1784.5,0.55]
[1743769928688,0.05606012,1785.1,1784.1,0.55]
[1743769928847,25.219,1785.2,1784.4,0.55]
[1743769929047,0.05606012,1785.1,1783.8,6.15595]
[1743769929379,5.60278,1784.9,1784.1,0.55]
[1743769929548,0.05606012,1784.8,1784.1,6.15486]
[1743769929750,0.05606012,1785.0,1784.3,3.0]
[1743769929955,5.65855012,1785.0,1784.2,3.55]
[1743769930151,5.65855012,1785.0,1784.2,9.15462]
[1743769930152,0.05606012,1785.0,1784.2,9.15462]
[1743769930386,5.60271,1784.9,1784.1,3.0]
[1743769930571,5.65900012,1784.8,1784.2,0.55]
[1743769930774,0.05,1785.9,1784.6,5.60344]
[1743769930972,0.05606012,1785.8,1785.1,0.55]
[1743769931172,0.05606012,1785.8,1785.0,5.60194]
[1743769931173,0.05,1785.9,1785.3,0.55]
[1743769931486,0.05,1785.9,1785.4,0.60599403]
[1743769931487,0.10606012,1785.9,1785.4,0.60599403]
[1743769931662,0.05,1785.9,1785.8,5.59973]
[1743769931861,1e-05,1785.9,1785.8,9.20571412]
[1743769932060,0.05,1786.9,1785.9,3.55]
[1743769932273,0.05,1786.9,1786.7,5.59691]
[1743769932456,0.05,1786.9,1786.8,6.14659]
[1743769932653,0.05,1786.9,1786.8,9.14659]
[1743769932868,0.05,1787.9,1786.8,9.14659]
[1743769932869,1.65016012,1787.9,1786.8,10.67688841]
[1743769933189,0.05,1787.9,1787.8,0.55]
[1743769933485,5.59402,1787.7,1787.4,0.55]
[1743769933670,0.05,1787.9,1786.8,1.47435]
[1743769933671,1.5996,1787.6,1786.8,0.55]
[1743769933877,0.05606012,1787.5,1786.8,0.55]
[1743769934077,0.05606012,1787.5,1787.0,0.55]
[1743769934259,0.05,1787.9,1787.3,3.0]
[1743769934456,0.05,1787.9,1787.6,3.55]
[1743769934770,3.0,1787.6,1786.2,5.36258035]
[1743769934978,3.0,1787.6,1786.9,0.55]
[1743769934979,0.05606012,1787.6,1786.9,0.55]
[1743769935193,0.05,1787.9,1786.9,0.55]
[1743769935194,0.10606012,1787.9,1786.9,0.55]
[1743769935498,5.59458,1787.5,1787.1,0.55]
[1743769935682,0.10606012,1787.9,1787.3,5.59498]
[1743769935683,0.05,1787.9,1787.3,5.59498]
[1743769936001,5.59349,1787.8,1787.4,0.55]
[1743769936293,0.10606012,1787.9,1787.0,3.0]
[1743769936294,0.05606012,1787.7,1787.1,0.55]
[1743769936458,5.64344,1787.9,1787.3,0.55]
[1743769936669,0.05,1787.9,1787.4,0.55]
[1743769936880,0.05,1787.9,1787.6,9.14389]
[1743769937123,0.05,1787.9,1787.6,0.55]
[1743769937309,0.05,1787.9,1787.8,9.14346]
[1743769937514,0.05,1788.9,1788.6,3.0]
[1743769937694,0.05,1788.9,1788.8,8.59033]
[1743769937895,0.05,1788.9,1788.8,0.60588933]
[1743769938079,0.05,1788.9,1788.8,9.14033]
[1743769938284,0.05,1788.9,1788.8,11.354844]
[1743769938482,1.6421,1789.9,1789.5,5.58787]
[1743769938483,0.05,1789.9,1789.5,5.58787]
[1743769938790,0.05,1789.9,1789.6,0.05587648]
[1743769939028,0.05,1789.9,1789.1,6.13936]
[1743769939211,0.05,1789.9,1789.6,3.0]
[1743769939405,0.05,1789.9,1789.8,10.24551]
[1743769939609,0.05606012,1791.1,1790.1,5.58618]
[1743769939787,0.05606012,1791.1,1790.3,3.0]
[1743769939986,1.5893,1791.6,1790.8,0.55]
[1743769940211,5.58223,1791.4,1790.2,5.36258035]
[1743769940427,5.58334,1791.1,1789.8,8.05101862]
[1743769940634,5.58431,1790.8,1789.9,0.55]
[1743769940832,5.64069012,1790.7,1789.7,0.55]
[1743769941038,5.58665,1790.0,1789.4,1.6336]
[1743769941191,5.58796,1789.6,1788.5,7.22472]
[1743769941387,5.58663,1790.0,1788.5,2.356072]
[1743769941388,0.05606012,1789.5,1788.5,2.356072]
[1743769941694,0.05606012,1789.9,1788.6,5.59073]
[1743769941888,3.0,1789.7,1788.5,1.6336]
[1743769942123,5.58873,1789.4,1788.5,1.6336]
[1743769942322,0.05606012,1789.6,1788.6,11.00943162]
[1743769942521,1.563,1790.2,1789.1,0.55]
[1743769942694,5.58683,1790.0,1789.1,0.55]
[1743769942888,5.58863,1789.4,1788.4,5.59155]
[1743769943090,5.58875,1789.4,1788.4,11.18298]
[1743769943290,1.12293701,1790.0,1788.5,6.99618035]
[1743769943526,0.05606012,1789.9,1788.5,1.6336]
[1743769943725,1.652,1789.4,1788.1,5.64242]
[1743769943891,1.652,1789.4,1788.3,5.36258035]
[1743769944091,0.05606012,1789.3,1788.1,0.05]
[1743769944314,5.64487012,1789.3,1788.3,5.59164]
[1743769944500,5.64487012,1789.3,1788.1,0.05]
[1743769944501,5.58992,1789.0,1788.1,0.05]
[1743769944706,5.58974,1789.0,1788.1,0.05]
[1743769944945,0.05606012,1788.9,1788.1,0.614265]
[1743769945143,5.58768,1789.7,1788.3,8.5919]
[1743769945347,5.64410012,1789.6,1788.6,5.59095]
[1743769945642,0.05606012,1789.7,1788.9,5.58977]
[1743769945844,5.58812,1789.6,1788.9,0.55]
[1743769946044,0.05606012,1789.5,1788.8,0.0558857]
[1743769946196,0.05606012,1789.5,1788.7,0.55]
[1743769946391,5.58715,1789.9,1789.2,5.58894]
[1743769946392,0.05606012,1789.9,1789.2,5.58894]
[1743769946607,0.05606012,1789.9,1789.0,0.55]
[1743769946835,5.58762,1789.7,1788.9,0.55]
[1743769947141,0.05606012,1789.9,1788.5,5.59122]
[1743769947142,5.64299012,1789.9,1788.6,5.59096]
[1743769947437,5.58767,1789.7,1788.8,6.1403]
[1743769947736,5.64419012,1789.6,1788.8,6.14032]
[1743769947902,0.05606012,1789.6,1788.4,1.5858]
[1743769948107,11.1786,1789.2,1788.2,5.59221]
[1743769948328,0.05606012,1789.1,1788.1,0.05]
[1743769948539,1.5366,1788.7,1788.1,0.05]
[1743769948841,0.05606012,1788.6,1788.1,0.05]
[1743769949001,7.17086,1789.1,1788.1,5.64235]
[1743769949206,5.5907,1788.7,1788.1,0.05]
[1743769949407,0.05606012,1788.7,1788.1,0.05]
[1743769949614,0.05606012,1788.9,1788.1,5.64222]
[1743769949816,1.5814,1789.1,1788.6,5.59079]
[1743769950015,0.05606012,1789.5,1788.9,0.55]
[1743769950301,0.05606012,1789.5,1788.3,5.36258035]
[1743769950302,5.58877,1789.3,1788.0,5.59267]
[1743769950507,5.59001,1789.0,1788.0,5.59265]
[1743769950719,5.59001,1789.0,1787.5,5.59428]
[1743769950720,5.59087,1788.7,1788.1,0.05]
[1743769950925,3.0,1789.2,1788.1,0.05]
[1743769951126,5.5916,1788.4,1788.1,0.05]
[1743769951436,0.05606012,1788.9,1788.1,5.64223]
[1743769951637,0.05606012,1788.9,1788.1,0.05]
[1743769951861,5.59009,1788.9,1788.2,0.55]
[1743769952148,5.64660012,1788.8,1788.1,0.05]
[1743769952329,5.59144,1788.5,1788.1,0.05]
[1743769952525,5.64777012,1788.4,1788.1,0.05]
[1743769952953,5.59218,1788.3,1788.1,0.05]
[1743769953150,0.05606012,1788.4,1788.1,0.05]
[1743769953327,4.5276,1788.5,1788.1,0.05]
[1743769953536,5.5944,1787.5,1787.1,0.05]
[1743769953731,5.59503,1787.3,1787.1,0.05]
[1743769953935,5.65140012,1787.2,1787.1,0.05]
[1743769954322,0.05606012,1787.2,1787.1,0.05]
[1743769954528,5.65140012,1787.2,1787.1,0.05]
[1743769954851,9.77604313,1787.2,1787.1,0.05]
[1743769955053,1.536,1787.1,1786.1,0.05]
[1743769955254,5.59847,1786.2,1786.1,0.05]
[1743769955466,7.19053012,1786.2,1786.1,0.05]
[1743769955845,1.59206012,1786.2,1786.1,0.05]
[1743769956056,7.13447,1786.2,1786.1,0.05]
[1743769956226,10.19053012,1786.2,1786.1,0.05]
[1743769956428,11.76942413,1786.2,1786.1,0.05]
[1743769956754,5.60102,1785.4,1785.1,0.05]
[1743769956959,5.65756012,1785.3,1785.1,0.05]
[1743769957455,5.60161,1785.2,1785.1,0.05]
[1743769957828,5.65767012,1785.2,1785.1,0.05]
[1743769958024,1.6348,1786.1,1785.1,0.05]
[1743769958357,5.59967,1785.9,1785.1,0.05]
[1743769958558,5.60023,1785.7,1785.1,0.05]
[1743769958745,5.60052,1785.6,1785.1,0.05]
[1743769958947,0.559967,1785.9,1785.1,0.05]
[1743769959129,5.5997,1785.9,1785.1,0.05]
[1743769959326,5.5991,1786.0,1785.1,0.05]
[1743769959525,5.59913,1786.0,1785.1,0.05]
[1743769959723,29.7898,1786.1,1785.1,0.05]
[1743769959926,5.60084,1785.5,1785.1,0.05]
[1743769960130,5.60161,1785.2,1785.1,0.05]
[1743769960424,8.60161,1785.2,1785.1,0.05]
[1743769960630,9.620221,1785.2,1785.1,0.05]
[1743769961453,8.60161,1785.2,1785.1,0.05]
[1743769961663,5.60161,1785.2,1785.1,0.05]
[1743769961886,1.6594,1786.0,1785.1,0.05]
[1743769962090,5.60018,1785.7,1785.1,0.05]
[1743769962242,1.6594,1786.0,1785.1,0.10601348]
[1743769962573,5.59998,1785.8,1785.1,0.05]
[1743769962791,5.60086,1785.5,1785.1,0.05]
[1743769962995,5.60111,1785.4,1785.1,0.05]
[1743769963275,5.60092,1785.5,1785.1,0.05]
[1743769963796,5.6005,1785.6,1785.1,0.05]
[1743769963949,8.71624341,1786.0,1785.1,0.05]
[1743769964149,5.6015,1785.3,1785.1,0.05]
[1743769964376,5.60161,1785.2,1785.1,0.05]
[1743769965175,5.6015,1785.3,1785.1,0.05]
[1743769965352,1.5936,1785.4,1785.1,0.05]
[1743769965567,5.60138,1785.3,1785.1,0.05]
[1743769966073,12.79581,1785.4,1785.1,0.05]
[1743769966247,5.60131,1785.3,1785.1,0.05]
[1743769966452,5.60058,1785.6,1785.1,0.05]
[1743769966649,5.59958,1785.9,1785.1,5.65178]
[1743769966851,5.59912,1786.0,1785.1,0.05]
[1743769967053,5.59954,1785.9,1785.1,11.25358]
[1743769967275,5.59954,1785.9,1785.1,0.05]
[1743769967476,5.60022,1785.7,1785.1,0.05]
[1743769967681,5.59918,1786.0,1785.1,0.05]
[1743769967879,1.6502,1786.7,1785.7,5.59988]
[1743769968046,5.59741,1786.6,1785.8,5.65565041]
[1743769968246,5.59741,1786.6,1785.9,0.05598586]
[1743769968447,5.59773,1786.5,1785.7,5.59991]
[1743769968653,5.59964,1785.9,1785.2,0.55]
[1743769968873,8.59912,1786.0,1785.1,7.23957]
[1743769969150,5.59923,1786.0,1785.2,0.55]
[1743769969372,5.59947,1785.9,1785.1,7.23959]
[1743769969574,11.1977,1786.1,1785.2,5.60145]
[1743769969773,5.59914,1786.0,1785.3,0.05600472]
[1743769969958,1.119793,1786.0,1785.1,7.23971]
[1743769970164,5.59926,1786.0,1785.1,7.23956]
[1743769970352,5.5985,1786.2,1785.4,5.6008]
[1743769970686,1.6502,1786.7,1786.0,5.59892]
[1743769970874,1.6502,1786.7,1786.0,5.59881]
[1743769971185,25.182,1786.8,1786.2,5.59827]
[1743769971482,7.25964,1787.1,1786.3,5.6539332]
[1743769971683,5.59613,1787.0,1786.2,5.59847]
[1743769971882,5.59736,1786.6,1786.0,0.55]
[1743769972068,5.59736,1786.6,1785.9,1.6513]
[1743769972255,5.59775,1786.5,1785.9,1.6513]
[1743769972457,5.59672,1786.8,1786.0,5.65496531]
[1743769972675,5.36258035,1787.2,1786.0,0.05598531]
[1743769972876,5.59548,1787.2,1786.4,5.59767]
[1743769973094,5.59627,1787.0,1786.2,5.59845]
[1743769973279,5.59627,1787.0,1786.3,5.59816]
[1743769973584,1.98108093,1787.5,1786.0,0.55]
[1743769973585,5.59471,1787.4,1786.0,0.55]
[1743769973787,3.0,1787.3,1786.0,0.55]
[1743769973967,5.59493,1787.4,1786.6,5.5971]
[1743769974162,5.59493,1787.4,1786.3,5.59814]
[1743769974373,5.59565,1787.2,1786.3,5.59803]
[1743769974581,0.716103,1787.4,1786.5,5.59741]
[1743769974774,5.59525,1787.3,1786.5,11.19481]
[1743769974974,5.59525,1787.3,1786.5,5.5974]
[1743769975177,5.59613,1787.0,1786.2,5.59836]
[1743769975688,5.59608,1787.0,1786.2,5.59837]
[1743769976184,6.715257,1787.0,1786.2,5.59837]
[1743769976389,5.59645,1786.9,1786.2,5.59837]
[1743769976592,11.19294,1786.9,1786.1,6.14868]
[1743769976902,5.59645,1786.9,1786.1,0.55]
[1743769977106,5.59764,1786.5,1785.9,1.6513]
[1743769977271,5.59764,1786.5,1785.7,5.59992]
[1743769977472,5.59786,1786.4,1785.7,5.59992]
[1743769977783,5.59786,1786.4,1785.6,11.20055]
[1743769977971,5.59757,1786.5,1785.4,1.5537]
[1743769977972,3.0,1786.5,1785.4,1.5537]
[1743769978170,5.59943,1785.9,1785.1,5.6518]
[1743769978484,5.59928,1786.0,1785.2,11.20307]
[1743769978800,5.59928,1786.0,1785.1,0.05]
[1743769978801,5.59988,1785.8,1785.1,5.65189]
[1743769979000,3.0,1786.2,1785.2,5.60155]
[1743769979001,5.59939,1786.0,1785.2,5.60155]
[1743769979220,5.59939,1786.0,1785.1,0.05]
[1743769979221,0.42629758,1786.5,1785.3,0.05600596]
[1743769979378,0.42629758,1786.5,1785.1,0.05]
[1743769979379,5.59951,1785.9,1785.2,5.60157]
[1743769979889,5.59771,1786.5,1785.3,0.05600787]
[1743769980091,5.59827,1786.3,1785.5,5.60037]
[1743769980417,5.59827,1786.3,1785.4,5.60095]
[1743769980418,5.59879,1786.1,1785.4,5.60078]
[1743769980573,5.59818,1786.3,1785.5,5.60038]
[1743769980768,5.59908,1786.1,1785.6,0.05599629]
[1743769980970,0.559818,1786.3,1785.6,5.60016]
[1743769981169,32.39552,1786.6,1785.6,0.05600173]
[1743769981375,26.7981,1786.6,1786.0,5.59902]
[1743769981618,26.7981,1786.6,1785.8,5.59972]
[1743769981619,30.77725,1786.6,1785.8,5.59972]
[1743769982025,25.18,1786.6,1785.9,0.05598595]
[1743769982215,25.18,1786.6,1786.0,5.59896]
[1743769982527,30.77733,1786.6,1785.9,5.65528063]
[1743769982734,25.18,1786.6,1786.1,5.59876]
[1743769983031,25.18,1786.6,1786.0,0.55]
[1743769983195,25.18,1786.6,1785.7,1.5227]
[1743769983398,2.758277,1787.0,1786.3,5.59789]
[1743769983597,2.758277,1787.0,1786.4,5.59773]
[1743769983598,1.6391,1787.0,1786.4,5.59773]
[1743769983819,30.77621,1787.3,1786.5,5.59732]
[1743769983985,25.181,1787.3,1786.6,0.05596953]
[1743769984186,5.59412,1787.6,1786.8,5.59641]
[1743769984388,5.5946,1787.5,1786.8,0.55]
[1743769984619,5.59465,1787.5,1786.7,5.59685]
[1743769984838,5.59465,1787.5,1786.7,11.19355]
[1743769985038,5.59413,1787.6,1786.8,0.55]
[1743769985200,0.05,1787.9,1787.1,0.55]
[1743769985516,0.05,1787.9,1787.7,5.59375]
[1743769985721,0.05,1787.9,1787.5,0.55]
[1743769986124,0.05,1787.9,1787.5,5.59438]
[1743769986290,0.05,1787.9,1787.8,5.59346]
[1743769986486,0.05,1787.9,1787.8,9.19938572]
[1743769986697,0.05,1788.9,1788.8,5.59033]
[1743769986925,0.05,1788.9,1788.8,0.05589526]
[1743769987093,0.05,1788.9,1788.8,5.59033]
[1743769987501,0.05,1788.9,1788.8,0.55]
[1743769987826,0.05,1788.9,1788.8,6.14033]
[1743769988020,0.05,1788.9,1788.7,0.55]
[1743769988225,0.05,1788.9,1788.6,4.6385]
[1743769988542,0.05,1788.9,1788.8,0.55]
[1743769988685,0.05,1788.9,1788.6,1.6385]
[1743769989119,0.05,1788.9,1788.7,0.55]
[1743769989420,0.05,1788.9,1788.8,5.64622694]
[1743769989625,0.05,1788.9,1788.7,5.59059]
[1743769989832,0.05,1788.9,1788.8,6.14033]
[1743769990140,0.05,1788.9,1788.8,0.55]
[1743769990422,0.05,1788.9,1788.7,5.59049]
[1743769990736,0.05,1788.9,1788.7,0.55]
[1743769990921,5.64027,1788.9,1788.1,10.24481]
[1743769991233,5.64027,1788.9,1788.2,5.59221]
[1743769991234,0.05,1788.9,1788.2,5.59221]
[1743769991387,0.05,1788.9,1788.6,5.59095]
[1743769991590,0.05,1788.9,1788.6,3.55]
[1743769991890,0.05,1788.9,1788.6,0.55]
[1743769992109,0.05,1788.9,1788.1,7.24482]
[1743769992290,5.64003,1788.9,1788.1,1.6523]
[1743769992490,5.59073,1788.7,1787.8,5.59321]
[1743769992718,1.639,1788.7,1787.7,1.5549]
[1743769992917,5.64012,1788.9,1787.7,7.14851]
[1743769993123,5.59061,1788.8,1787.9,5.59295]
[1743769993325,5.59081,1788.7,1787.9,5.59295]
[1743769993519,5.59122,1788.6,1787.9,3.0]
[1743769993706,5.5905,1788.8,1787.9,5.64883915]
[1743769993908,0.05,1788.9,1788.0,5.59284]
[1743769994223,0.05,1788.9,1788.4,5.59136]
[1743769994422,0.05,1788.9,1788.5,0.05590354]
[1743769994628,0.05,1788.9,1788.7,5.59051]
[1743769994830,0.05,1788.9,1788.8,9.19622631]
[1743769995005,0.05,1788.9,1788.8,10.61900363]
[1743769995408,0.05,1788.9,1788.8,3.55]
[1743769995738,0.05,1788.9,1788.8,6.14033]
[1743769995896,0.05,1788.9,1788.8,0.55]
[1743769996239,0.05,1788.9,1788.8,9.14033]
[1743769996528,0.05,1788.9,1788.8,6.19621302]
[1743769996841,0.05,1788.9,1788.8,6.14033]
[1743769997019,0.05,1788.9,1788.8,5.59033]
[1743769997203,0.05,1788.9,1788.8,9.14033]
[1743769997399,1e-05,1788.9,1788.8,10.613414]
[1743769997725,1.6184,1789.9,1788.8,10.613414]
[1743769997726,0.05,1789.9,1789.7,5.58743]
[1743769997928,0.05,1789.9,1789.8,0.05586289]
[1743769998099,0.05,1789.9,1789.5,3.55]
[1743769998303,0.05,1789.9,1789.3,6.13864]
[1743769998606,5.63709,1789.9,1789.1,0.55]
[1743769998805,5.63709,1789.9,1788.7,0.55]
[1743769998806,5.58822,1789.5,1788.7,0.55]
[1743769999036,5.58822,1789.5,1788.7,11.18094]
[1743769999246,5.5874,1789.8,1788.2,5.59202]
[1743769999394,5.58867,1789.4,1788.6,7.25035]
[1743769999594,5.5874,1789.8,1788.7,5.59065]
[1743769999798,0.05,1789.9,1788.7,3.725005]
[1743770000107,5.58721,1789.8,1789.0,0.55]
[1743770000319,5.58981,1789.0,1788.5,0.55]
[1743770000505,5.58846,1789.4,1788.2,1.6392]
[1743770000849,3.0,1789.2,1787.9,3.56488392]
[1743770001152,5.58909,1789.2,1788.1,5.59252]
[1743770001351,5.58857,1789.4,1788.6,5.59066]
[1743770001502,7.17986,1789.5,1788.7,0.05589689]
[1743770001706,1.5917,1789.5,1788.9,5.58996]
[1743770001925,5.58818,1789.5,1789.0,0.05589346]
[1743770002125,5.58833,1789.5,1788.7,7.24773]
[1743770002325,5.58857,1789.4,1788.7,12.83819]
[1743770002521,5.58833,1789.5,1788.8,5.64611266]
[1743770002767,5.58857,1789.4,1788.8,3.0]
[1743770003073,5.58936,1789.2,1788.5,0.55]
[1743770003369,5.58865,1789.4,1788.5,1.164151]
[1743770003534,5.58784,1789.6,1788.8,0.55]
[1743770003860,5.58927,1789.2,1788.5,3.0]
[1743770004034,5.5886,1789.4,1788.7,0.55]
[1743770004234,5.58923,1789.2,1788.5,3.0]
[1743770004433,5.5888,1789.3,1788.6,0.55]
[1743770004750,5.58908,1789.3,1788.6,0.55]
[1743770004948,5.58856,1789.4,1788.7,5.64638862]
[1743770005259,0.05,1789.9,1788.9,0.55]
[1743770005457,5.63693,1789.9,1788.9,0.55]
[1743770005668,5.63693,1789.9,1788.7,0.55]
[1743770005830,5.5898,1789.0,1788.3,5.59172]
[1743770006024,7.16339,1789.2,1788.4,5.64749808]
[1743770006224,5.59027,1788.9,1788.0,5.59284]
[1743770006441,5.58971,1789.0,1788.0,5.59265]
[1743770006639,5.58954,1789.1,1788.4,5.59157]
[1743770006872,5.58991,1789.0,1788.4,0.55]
[1743770007089,5.5911,1788.6,1787.5,7.13937]
[1743770007274,5.36258035,1788.9,1787.6,5.59405]
[1743770007606,25.142,1789.1,1788.5,5.59112]
[1743770007788,5.59017,1788.9,1787.9,0.55]
[1743770008108,7.16331,1789.2,1788.3,0.55]
[1743770008307,1.5742,1789.2,1788.6,5.59081]
[1743770008512,1.5742,1789.2,1788.5,0.55]
[1743770008513,7.1634,1789.2,1788.5,5.59127]
[1743770008811,1.5279,1789.6,1788.7,0.55]
[1743770008960,1.5279,1789.6,1788.9,6.13988]
[1743770009161,5.58817,1789.5,1788.9,0.55]
[1743770009507,5.58846,1789.4,1788.2,1.5074]
[1743770009808,0.711607,1789.5,1788.4,0.05590467]
[1743770009971,1.5279,1789.6,1788.6,0.55]
[1743770010165,5.58879,1789.3,1788.5,5.59107]
[1743770010513,7.11595,1789.6,1788.7,0.55]
[1743770010690,29.0902678,1789.8,1789.1,5.58918]
[1743770010691,25.142,1789.8,1789.1,5.58918]
[1743770010873,25.142,1789.8,1789.1,0.55]
[1743770010874,5.58725,1789.8,1789.1,0.55]
[1743770011081,0.05,1789.9,1789.3,0.55]
[1743770011254,0.05,1789.9,1789.4,3.05586756]
[1743770011454,0.05,1789.9,1789.8,8.58721]
[1743770011770,0.05,1789.9,1789.8,0.55]
[1743770011967,0.05,1789.9,1789.3,5.58869]
[1743770012170,5.63692,1789.9,1789.1,2.248045]
[1743770012392,1.5764,1789.8,1788.8,0.55]
[1743770012595,5.58768,1789.7,1788.9,5.58983]
[1743770012795,5.58774,1789.7,1788.7,1.6341]
[1743770013088,7.16377,1789.8,1789.0,6.13949]
[1743770013391,0.05,1789.9,1789.8,5.58721]
[1743770013567,0.05,1789.9,1789.4,1.5551]
[1743770013772,0.05,1789.9,1789.5,0.55]
[1743770013979,0.05,1789.9,1789.8,0.55]
[1743770014177,0.05,1789.9,1789.6,5.58783]
[1743770014379,0.05,1789.9,1789.4,4.5551]
[1743770014587,0.05,1789.9,1789.6,5.58769]
[1743770014766,0.05,1789.9,1789.7,0.05586614]
[1743770015092,0.05,1789.9,1789.5,0.55]
[1743770015304,1.5945,1789.8,1788.6,1.5428]
[1743770015462,1.5945,1789.8,1788.9,5.58984]
[1743770015463,5.58772,1789.7,1788.9,5.58984]
[1743770015663,7.18171,1789.8,1789.0,5.58955]
[1743770015993,7.18194,1789.8,1789.1,0.05588704]
[1743770016298,5.5877,1789.7,1788.6,10.13355]
[1743770016509,5.58876,1789.4,1788.8,0.55]
[1743770016993,5.58861,1789.4,1788.6,7.68375]
[1743770017212,5.58765,1789.7,1788.9,5.58973]
[1743770017370,5.58733,1789.8,1789.0,5.58941]
[1743770017692,5.58733,1789.8,1789.1,6.13925]
[1743770018060,0.05,1789.9,1789.0,0.55]
[1743770018305,5.58754,1789.7,1789.0,6.13957]
[1743770018512,5.58754,1789.7,1789.0,0.55]
[1743770018719,5.588,1789.6,1789.0,0.55]
[1743770019000,5.58796,1789.6,1789.0,0.55]
[1743770019194,5.58845,1789.5,1788.7,5.5904]